[Event "Titled Tuesday Blitz November 29 Early 2022"]
[White "Mohammed, Dilshad"]
[Black "Ardila, Oscar Humberto"]
[WhiteFideId "5050421"]
[BlackFideId "4404742"]
[WhiteElo "2102"]
[BlackElo "1959"]
[Result "1-0"]
[Round "03"]
[TimeControl "180+1"]
[Date "2022.11.30"]
[WhiteClock "0:00:18"]
[BlackClock "0:00:09"]

1. Nf3 {[%clk 0:02:58]}  Nf6 {[%clk 0:02:59]} 2. c4 {[%clk 0:02:58]}  e6 {[%clk 0:02:59]} 3. g3 {[%clk 0:02:55]}  Be7 {[%clk 0:02:59]} 4. Bg2 {[%clk 0:02:54]}  O-O {[%clk 0:02:59]} 5. O-O {[%clk 0:02:55]}  c5 {[%clk 0:02:58]} 6. Nc3 {[%clk 0:02:49]}  Nc6 {[%clk 0:02:59]} 7. d4 {[%clk 0:02:47]}  cxd4 {[%clk 0:02:58]} 8. Nxd4 {[%clk 0:02:48]}  a6 {[%clk 0:02:58]} 9. e4 {[%clk 0:02:45]}  Qc7 {[%clk 0:02:56]} 10. Nxc6 {[%clk 0:02:41]}  bxc6 {[%clk 0:02:55]} 11. Qc2 {[%clk 0:02:41]}  Bb7 {[%clk 0:02:54]} 12. Re1 {[%clk 0:02:40]}  d6 {[%clk 0:02:52]} 13. h3 {[%clk 0:02:36]}  e5 {[%clk 0:02:52]} 14. Nd1 {[%clk 0:02:32]}  Rad8 {[%clk 0:02:49]} 15. Ne3 {[%clk 0:02:31]}  Rfe8 {[%clk 0:02:47]} 16. Nf5 {[%clk 0:02:30]}  Bf8 {[%clk 0:02:47]} 17. Bg5 {[%clk 0:02:29]}  Re6 {[%clk 0:02:44]} 18. h4 {[%clk 0:02:27]}  h6 {[%clk 0:02:44]} 19. Be3 {[%clk 0:02:23]}  Kh7 {[%clk 0:02:42]} 20. Bh3 {[%clk 0:02:23]}  Ree8 {[%clk 0:02:42]} 21. Qe2 {[%clk 0:02:19]}  g6 {[%clk 0:02:38]} 22. Qf3 {[%clk 0:02:12]}  Ng8 {[%clk 0:02:21]} 23. h5 {[%clk 0:02:04]}  gxf5 {[%clk 0:02:17]} 24. Bxf5+ {[%clk 0:02:00]}  Kh8 {[%clk 0:02:17]} 25. g4 {[%clk 0:01:43]}  Qe7 {[%clk 0:02:17]} 26. Kg2 {[%clk 0:01:37]}  Bg7 {[%clk 0:02:11]} 27. Rg1 {[%clk 0:01:37]}  Bf6 {[%clk 0:02:11]} 28. Kh1 {[%clk 0:01:35]}  Bg5 {[%clk 0:02:11]} 29. Rg2 {[%clk 0:01:33]}  Bxe3 {[%clk 0:02:11]} 30. Qxe3 {[%clk 0:01:30]}  Qh4+ {[%clk 0:02:10]} 31. Rh2 {[%clk 0:01:26]}  Qg5 {[%clk 0:02:10]} 32. Qb6 {[%clk 0:01:16]}  Qe7 {[%clk 0:02:09]} 33. g5 {[%clk 0:01:13]}  d5 {[%clk 0:02:05]} 34. g6 {[%clk 0:01:08]}  dxe4 {[%clk 0:01:53]} 35. Rg1 {[%clk 0:01:03]}  fxg6 {[%clk 0:01:41]} 36. Rxg6 {[%clk 0:01:02]}  Rd6 {[%clk 0:01:41]} 37. Rxd6 {[%clk 0:00:59]}  Qxd6 {[%clk 0:01:34]} 38. Qxb7 {[%clk 0:00:59]}  Qd1+ {[%clk 0:01:33]} 39. Kg2 {[%clk 0:00:57]}  Qf3+ {[%clk 0:01:33]} 40. Kg1 {[%clk 0:00:53]}  Qxf5 {[%clk 0:01:32]} 41. Rg2 {[%clk 0:00:50]}  Qf8 {[%clk 0:00:52]} 42. Qxc6 {[%clk 0:00:47]}  Re7 {[%clk 0:00:44]} 43. Qxe4 {[%clk 0:00:40]}  Rg7 {[%clk 0:00:42]} 44. Qxe5 {[%clk 0:00:39]}  Qf7 {[%clk 0:00:38]} 45. b3 {[%clk 0:00:36]}  Nf6 {[%clk 0:00:36]} 46. Rxg7 {[%clk 0:00:32]}  Qxg7+ {[%clk 0:00:36]} 47. Kf1 {[%clk 0:00:32]}  Qf7 {[%clk 0:00:18]} 48. c5 {[%clk 0:00:20]}  Kg7 {[%clk 0:00:18]} 49. c6 {[%clk 0:00:20]}  Qa7 {[%clk 0:00:15]} 50. c7 {[%clk 0:00:16]}  Qb7 {[%clk 0:00:14]} 51. Qe7+ {[%clk 0:00:15]}  Kg8 {[%clk 0:00:12]} 52. Qd8+ {[%clk 0:00:15]}  Kf7 {[%clk 0:00:12]} 53. c8=Q {[%clk 0:00:16]}  Qh1+ {[%clk 0:00:12]} 54. Ke2 {[%clk 0:00:17]}  Qe4+ {[%clk 0:00:12]} 55. Kd2 {[%clk 0:00:17]}  Qf4+ {[%clk 0:00:11]} 56. Kc2 {[%clk 0:00:18]}  Qxf2+ {[%clk 0:00:11]} 57. Qd2 {[%clk 0:00:18]}  Qf1 {[%clk 0:00:09]} 58. Qc7+ {[%clk 0:00:18]}  Kf8 {[%clk 0:00:10]} 59. Qdd8+ {[%clk 0:00:18]}  Ne8 {[%clk 0:00:10]} 60. Qcd6+ {[%clk 0:00:17]}  Kf7 {[%clk 0:00:09]} 61. Q6e7+ {[%clk 0:00:18]} 1-0


[Site "https://www.chess.com"]

[Event "Titled Tuesday Blitz November 29 Early 2022"]
[White "Moskvin, Anatoly"]
[Black "Langner, Ladislav"]
[WhiteFideId "24199990"]
[BlackFideId "300403"]
[WhiteElo "2079"]
[BlackElo "2346"]
[Result "1-0"]
[Round "03"]
[TimeControl "180+1"]
[Date "2022.11.30"]
[WhiteClock "0:00:59"]
[BlackClock "0:01:01"]

1. e4 {[%clk 0:03:00]}  c5 {[%clk 0:02:59]} 2. Nf3 {[%clk 0:03:00]}  e6 {[%clk 0:03:00]} 3. b4 {[%clk 0:03:00]}  cxb4 {[%clk 0:02:58]} 4. d4 {[%clk 0:03:01]}  d5 {[%clk 0:02:58]} 5. e5 {[%clk 0:03:01]}  Nc6 {[%clk 0:02:55]} 6. a3 {[%clk 0:03:02]}  Nge7 {[%clk 0:02:53]} 7. h4 {[%clk 0:03:01]}  Nf5 {[%clk 0:02:52]} 8. g4 {[%clk 0:03:00]}  Nfe7 {[%clk 0:02:45]} 9. h5 {[%clk 0:03:00]}  f6 {[%clk 0:02:41]} 10. exf6 {[%clk 0:02:43]}  gxf6 {[%clk 0:02:40]} 11. g5 {[%clk 0:02:31]}  Nf5 {[%clk 0:02:30]} 12. Bd3 {[%clk 0:02:28]}  Ncxd4 {[%clk 0:02:22]} 13. Nxd4 {[%clk 0:02:23]}  Nxd4 {[%clk 0:02:22]} 14. g6 {[%clk 0:02:23]}  Nf5 {[%clk 0:02:06]} 15. Qg4 {[%clk 0:02:14]}  Bg7 {[%clk 0:01:50]} 16. h6 {[%clk 0:01:52]}  Nxh6 {[%clk 0:01:41]} 17. Bxh6 {[%clk 0:01:49]}  e5 {[%clk 0:01:41]} 18. Qh5 {[%clk 0:01:45]}  Bxh6 {[%clk 0:01:25]} 19. g7+ {[%clk 0:01:40]}  Ke7 {[%clk 0:01:25]} 20. gxh8=Q {[%clk 0:01:37]}  Qxh8 {[%clk 0:01:26]} 21. Qxh6 {[%clk 0:01:38]}  e4 {[%clk 0:01:22]} 22. Be2 {[%clk 0:01:29]}  Bf5 {[%clk 0:01:21]} 23. axb4 {[%clk 0:01:26]}  Rc8 {[%clk 0:01:18]} 24. Rxa7 {[%clk 0:01:22]}  Rxc2 {[%clk 0:01:17]} 25. Rxb7+ {[%clk 0:01:20]}  Ke6 {[%clk 0:01:17]} 26. Qe3 {[%clk 0:01:09]}  Qc8 {[%clk 0:01:11]} 27. Rb6+ {[%clk 0:01:00]}  Ke5 {[%clk 0:01:01]} 28. f4# {[%clk 0:00:59]} 1-0


[Site "https://www.chess.com"]

[Event "Titled Tuesday Blitz November 29 Early 2022"]
[White "Oparin, Grigoriy"]
[Black "Goltsev, Dmitry"]
[WhiteFideId "24125890"]
[BlackFideId "24176710"]
[WhiteElo "2639"]
[BlackElo "2289"]
[Result "0-1"]
[Round "03"]
[TimeControl "180+1"]
[Date "2022.11.30"]
[WhiteClock "0:00:02"]
[BlackClock "0:00:07"]

1. Nf3 {[%clk 0:03:00]}  d5 {[%clk 0:02:59]} 2. c4 {[%clk 0:03:01]}  c6 {[%clk 0:02:59]} 3. e3 {[%clk 0:03:01]}  Nf6 {[%clk 0:02:57]} 4. b3 {[%clk 0:03:01]}  g6 {[%clk 0:02:56]} 5. Bb2 {[%clk 0:03:02]}  Bg7 {[%clk 0:02:54]} 6. d4 {[%clk 0:03:01]}  O-O {[%clk 0:02:54]} 7. Be2 {[%clk 0:03:01]}  Ne4 {[%clk 0:02:54]} 8. O-O {[%clk 0:03:01]}  Nd7 {[%clk 0:02:53]} 9. Nbd2 {[%clk 0:03:01]}  Nxd2 {[%clk 0:02:52]} 10. Qxd2 {[%clk 0:03:00]}  e6 {[%clk 0:02:51]} 11. a4 {[%clk 0:02:59]}  f6 {[%clk 0:02:43]} 12. a5 {[%clk 0:02:59]}  Re8 {[%clk 0:02:41]} 13. Rfc1 {[%clk 0:02:57]}  Qe7 {[%clk 0:02:35]} 14. a6 {[%clk 0:02:56]}  bxa6 {[%clk 0:02:28]} 15. cxd5 {[%clk 0:02:52]}  cxd5 {[%clk 0:02:29]} 16. Bxa6 {[%clk 0:02:52]}  Bxa6 {[%clk 0:02:29]} 17. Rxa6 {[%clk 0:02:52]}  Nb6 {[%clk 0:02:20]} 18. Ne1 {[%clk 0:02:37]}  e5 {[%clk 0:02:17]} 19. dxe5 {[%clk 0:02:32]}  fxe5 {[%clk 0:02:18]} 20. Rca1 {[%clk 0:02:30]}  d4 {[%clk 0:02:08]} 21. Nf3 {[%clk 0:02:23]}  dxe3 {[%clk 0:01:57]} 22. Qxe3 {[%clk 0:02:20]}  e4 {[%clk 0:01:54]} 23. Bxg7 {[%clk 0:02:16]}  Qxg7 {[%clk 0:01:55]} 24. Ng5 {[%clk 0:02:10]}  Rad8 {[%clk 0:01:50]} 25. h4 {[%clk 0:02:08]}  Rd7 {[%clk 0:01:45]} 26. Nxe4 {[%clk 0:01:59]}  Nd5 {[%clk 0:01:31]} 27. Qd3 {[%clk 0:01:52]}  Qe7 {[%clk 0:01:19]} 28. f3 {[%clk 0:01:41]}  Qxh4 {[%clk 0:01:15]} 29. Rxa7 {[%clk 0:01:12]}  Rxa7 {[%clk 0:01:11]} 30. Rxa7 {[%clk 0:01:13]}  Qe1+ {[%clk 0:01:08]} 31. Qf1 {[%clk 0:01:13]}  Qe3+ {[%clk 0:01:00]} 32. Qf2 {[%clk 0:01:14]}  Qc1+ {[%clk 0:00:58]} 33. Kh2 {[%clk 0:01:00]}  Qh6+ {[%clk 0:00:58]} 34. Kg3 {[%clk 0:00:58]}  Qf4+ {[%clk 0:00:47]} 35. Kh3 {[%clk 0:00:58]}  Rxe4 {[%clk 0:00:46]} 36. Ra8+ {[%clk 0:00:46]}  Kf7 {[%clk 0:00:45]} 37. Ra7+ {[%clk 0:00:46]}  Re7 {[%clk 0:00:44]} 38. Rxe7+ {[%clk 0:00:43]}  Nxe7 {[%clk 0:00:45]} 39. g3 {[%clk 0:00:37]}  Qb4 {[%clk 0:00:41]} 40. Qe3 {[%clk 0:00:34]}  h5 {[%clk 0:00:37]} 41. Qd3 {[%clk 0:00:31]}  Nf5 {[%clk 0:00:32]} 42. Qd5+ {[%clk 0:00:29]}  Kg7 {[%clk 0:00:30]} 43. Qe5+ {[%clk 0:00:29]}  Kh7 {[%clk 0:00:29]} 44. Qc7+ {[%clk 0:00:25]}  Kh6 {[%clk 0:00:28]} 45. Qd8 {[%clk 0:00:23]}  Qc3 {[%clk 0:00:21]} 46. b4 {[%clk 0:00:23]}  Kh7 {[%clk 0:00:17]} 47. Qd7+ {[%clk 0:00:21]}  Ng7 {[%clk 0:00:16]} 48. Qb7 {[%clk 0:00:20]}  Qe1 {[%clk 0:00:15]} 49. Kg2 {[%clk 0:00:19]}  Qe2+ {[%clk 0:00:16]} 50. Kg1 {[%clk 0:00:19]}  Kh6 {[%clk 0:00:14]} 51. Qe4 {[%clk 0:00:04]}  Qxe4 {[%clk 0:00:12]} 52. fxe4 {[%clk 0:00:05]}  Ne6 {[%clk 0:00:13]} 53. b5 {[%clk 0:00:05]}  Kg5 {[%clk 0:00:12]} 54. b6 {[%clk 0:00:06]}  Nd8 {[%clk 0:00:09]} 55. Kf2 {[%clk 0:00:05]}  Kf6 {[%clk 0:00:09]} 56. Kf3 {[%clk 0:00:03]}  g5 {[%clk 0:00:10]} 57. Ke3 {[%clk 0:00:03]}  Ke5 {[%clk 0:00:10]} 58. Kd3 {[%clk 0:00:02]}  Nb7 {[%clk 0:00:10]} 59. Ke3 {[%clk 0:00:02]}  Nd6 {[%clk 0:00:10]} 60. Kf3 {[%clk 0:00:02]}  g4+ {[%clk 0:00:07]} 0-1


[Site "https://www.chess.com"]

[Event "Titled Tuesday Blitz November 29 Early 2022"]
[White "Osinovsky, Stepan"]
[Black "Kleiman, Jake"]
[WhiteFideId "4157354"]
[BlackFideId "2020041"]
[WhiteElo "2222"]
[BlackElo "2621"]
[Result "0-1"]
[Round "03"]
[TimeControl "180+1"]
[Date "2022.11.30"]
[WhiteClock "0:00:17"]
[BlackClock "0:00:27"]

1. Nf3 {[%clk 0:03:00]}  d5 {[%clk 0:03:00]} 2. g3 {[%clk 0:03:01]}  e6 {[%clk 0:03:00]} 3. Bg2 {[%clk 0:03:02]}  Nf6 {[%clk 0:03:00]} 4. O-O {[%clk 0:03:03]}  g6 {[%clk 0:03:01]} 5. d3 {[%clk 0:03:04]}  Bg7 {[%clk 0:03:01]} 6. Nbd2 {[%clk 0:03:05]}  O-O {[%clk 0:03:01]} 7. e4 {[%clk 0:03:06]}  c5 {[%clk 0:03:02]} 8. Re1 {[%clk 0:03:06]}  Nc6 {[%clk 0:03:02]} 9. c3 {[%clk 0:03:05]}  a5 {[%clk 0:03:02]} 10. a4 {[%clk 0:03:04]}  b6 {[%clk 0:02:57]} 11. exd5 {[%clk 0:02:57]}  exd5 {[%clk 0:02:54]} 12. Qb3 {[%clk 0:02:57]}  Bf5 {[%clk 0:02:43]} 13. c4 {[%clk 0:02:11]}  Nb4 {[%clk 0:02:40]} 14. Ne5 {[%clk 0:01:44]}  Nd7 {[%clk 0:01:57]} 15. Ndf3 {[%clk 0:01:28]}  Re8 {[%clk 0:01:44]} 16. Bf4 {[%clk 0:01:23]}  Nxe5 {[%clk 0:01:34]} 17. Nxe5 {[%clk 0:01:11]}  g5 {[%clk 0:01:26]} 18. cxd5 {[%clk 0:00:47]}  gxf4 {[%clk 0:01:22]} 19. Nxf7 {[%clk 0:00:46]}  Kxf7 {[%clk 0:01:18]} 20. d6+ {[%clk 0:00:44]}  Kf8 {[%clk 0:01:05]} 21. Re7 {[%clk 0:00:31]}  Rxe7 {[%clk 0:00:55]} 22. dxe7+ {[%clk 0:00:31]}  Kxe7 {[%clk 0:00:53]} 23. Re1+ {[%clk 0:00:29]}  Kf8 {[%clk 0:00:54]} 24. Qc4 {[%clk 0:00:27]}  Nxd3 {[%clk 0:00:42]} 25. Rd1 {[%clk 0:00:20]}  Ra7 {[%clk 0:00:37]} 26. Bd5 {[%clk 0:00:19]}  Rd7 {[%clk 0:00:35]} 27. Bg8 {[%clk 0:00:18]}  Ne5 {[%clk 0:00:28]} 28. Re1 {[%clk 0:00:17]}  Nxc4 {[%clk 0:00:27]} 0-1


[Site "https://www.chess.com"]

[Event "Titled Tuesday Blitz November 29 Early 2022"]
[White "Ovezdurdyyeva, Jemal"]
[Black "Ismayil, Malak"]
[WhiteFideId "14001888"]
[BlackFideId "13412604"]
[WhiteElo "1961"]
[BlackElo "1879"]
[Result "0-1"]
[Round "03"]
[TimeControl "180+1"]
[Date "2022.11.30"]
[WhiteClock "0:00:01"]
[BlackClock "0:00:05"]

1. e4 {[%clk 0:02:59]}  e5 {[%clk 0:03:00]} 2. Nf3 {[%clk 0:02:58]}  Nc6 {[%clk 0:03:00]} 3. Bc4 {[%clk 0:02:58]}  Bc5 {[%clk 0:02:58]} 4. O-O {[%clk 0:02:57]}  Nf6 {[%clk 0:02:58]} 5. d3 {[%clk 0:02:57]}  O-O {[%clk 0:02:58]} 6. c3 {[%clk 0:02:57]}  h6 {[%clk 0:02:58]} 7. h3 {[%clk 0:02:57]}  d6 {[%clk 0:02:58]} 8. b4 {[%clk 0:02:57]}  Bb6 {[%clk 0:02:58]} 9. a4 {[%clk 0:02:58]}  a6 {[%clk 0:02:58]} 10. Be3 {[%clk 0:02:57]}  Bxe3 {[%clk 0:02:56]} 11. fxe3 {[%clk 0:02:57]}  Be6 {[%clk 0:02:55]} 12. Na3 {[%clk 0:02:54]}  Qe7 {[%clk 0:02:50]} 13. Qc2 {[%clk 0:02:52]}  Rad8 {[%clk 0:02:50]} 14. Rae1 {[%clk 0:02:50]}  d5 {[%clk 0:02:46]} 15. exd5 {[%clk 0:02:50]}  Bxd5 {[%clk 0:02:47]} 16. e4 {[%clk 0:02:45]}  Be6 {[%clk 0:02:34]} 17. Nh4 {[%clk 0:02:41]}  Nh5 {[%clk 0:02:00]} 18. Bxe6 {[%clk 0:02:21]}  Qxe6 {[%clk 0:01:42]} 19. Nf5 {[%clk 0:02:21]}  Ne7 {[%clk 0:01:41]} 20. Nc4 {[%clk 0:02:15]}  Nf4 {[%clk 0:01:27]} 21. Rf3 {[%clk 0:02:09]}  Rd7 {[%clk 0:01:07]} 22. Ref1 {[%clk 0:01:37]}  Nxf5 {[%clk 0:00:51]} 23. exf5 {[%clk 0:01:35]}  Qxf5 {[%clk 0:00:52]} 24. g3 {[%clk 0:01:02]}  Nxh3+ {[%clk 0:00:51]} 25. Kg2 {[%clk 0:01:02]}  Qe6 {[%clk 0:00:48]} 26. Rf5 {[%clk 0:00:53]}  f6 {[%clk 0:00:30]} 27. Nxe5 {[%clk 0:00:43]}  Rd5 {[%clk 0:00:25]} 28. d4 {[%clk 0:00:30]}  Ng5 {[%clk 0:00:25]} 29. c4 {[%clk 0:00:28]}  Rxd4 {[%clk 0:00:24]} 30. Ng6 {[%clk 0:00:16]}  Rfd8 {[%clk 0:00:24]} 31. R1f2 {[%clk 0:00:16]}  Rxc4 {[%clk 0:00:20]} 32. Qb3 {[%clk 0:00:15]}  Qe4+ {[%clk 0:00:19]} 33. Kh2 {[%clk 0:00:14]}  Kh7 {[%clk 0:00:17]} 34. R5f4 {[%clk 0:00:14]}  Qxg6 {[%clk 0:00:14]} 35. Qxc4 {[%clk 0:00:14]}  Rd7 {[%clk 0:00:12]} 36. Kg2 {[%clk 0:00:12]}  Nf7 {[%clk 0:00:07]} 37. Rd4 {[%clk 0:00:11]}  Re7 {[%clk 0:00:06]} 38. Qd3 {[%clk 0:00:09]}  Ne5 {[%clk 0:00:06]} 39. Qxg6+ {[%clk 0:00:09]}  Kxg6 {[%clk 0:00:07]} 40. Rc2 {[%clk 0:00:08]}  c6 {[%clk 0:00:08]} 41. Re4 {[%clk 0:00:07]}  Rd7 {[%clk 0:00:07]} 42. Ree2 {[%clk 0:00:07]}  Rd4 {[%clk 0:00:07]} 43. Rb2 {[%clk 0:00:06]}  Nc4 {[%clk 0:00:06]} 44. Rb3 {[%clk 0:00:05]}  h5 {[%clk 0:00:04]} 45. b5 {[%clk 0:00:05]}  axb5 {[%clk 0:00:04]} 46. axb5 {[%clk 0:00:06]}  c5 {[%clk 0:00:05]} 47. Re7 {[%clk 0:00:05]}  b6 {[%clk 0:00:05]} 48. Rc3 {[%clk 0:00:03]}  Rd2+ {[%clk 0:00:05]} 49. Kh3 {[%clk 0:00:01]}  Ne5 {[%clk 0:00:05]} 0-1


[Site "https://www.chess.com"]

[Event "Titled Tuesday Blitz November 29 Early 2022"]
[White "Ozates, Tuna"]
[Black "Pakleza, Zbigniew"]
[WhiteFideId "6354521"]
[BlackFideId "1119290"]
[WhiteElo "2151"]
[BlackElo "2411"]
[Result "1-0"]
[Round "03"]
[TimeControl "180+1"]
[Date "2022.11.30"]
[WhiteClock "0:00:06"]
[BlackClock "0:00:02"]

1. e4 {[%clk 0:03:00]}  d6 {[%clk 0:02:59]} 2. d4 {[%clk 0:03:00]}  Nf6 {[%clk 0:02:59]} 3. Nc3 {[%clk 0:03:00]}  c6 {[%clk 0:02:59]} 4. Nf3 {[%clk 0:02:59]}  Bg4 {[%clk 0:02:59]} 5. h3 {[%clk 0:02:59]}  Bh5 {[%clk 0:02:58]} 6. Be2 {[%clk 0:02:56]}  e6 {[%clk 0:02:57]} 7. e5 {[%clk 0:02:54]}  Nd5 {[%clk 0:02:56]} 8. Ne4 {[%clk 0:02:53]}  Bxf3 {[%clk 0:02:56]} 9. Bxf3 {[%clk 0:02:53]}  dxe5 {[%clk 0:02:56]} 10. dxe5 {[%clk 0:02:54]}  Nd7 {[%clk 0:02:52]} 11. c4 {[%clk 0:02:46]}  N5b6 {[%clk 0:02:46]} 12. Bg5 {[%clk 0:02:38]}  Qb8 {[%clk 0:02:31]} 13. O-O {[%clk 0:02:01]}  Nxc4 {[%clk 0:02:20]} 14. Re1 {[%clk 0:02:00]}  Ncxe5 {[%clk 0:02:08]} 15. Bh5 {[%clk 0:01:54]}  Bb4 {[%clk 0:01:35]} 16. Re3 {[%clk 0:01:51]}  Ng6 {[%clk 0:01:25]} 17. Qd4 {[%clk 0:01:44]}  Be7 {[%clk 0:00:56]} 18. Qxg7 {[%clk 0:01:35]}  Qe5 {[%clk 0:00:56]} 19. Nd6+ {[%clk 0:01:04]}  Qxd6 {[%clk 0:00:45]} 20. Bxg6 {[%clk 0:01:05]}  O-O-O {[%clk 0:00:46]} 21. Bxe7 {[%clk 0:00:58]}  Qxe7 {[%clk 0:00:47]} 22. Qxf7 {[%clk 0:00:58]}  Qg5 {[%clk 0:00:32]} 23. Be4 {[%clk 0:00:57]}  Nc5 {[%clk 0:00:28]} 24. Bf3 {[%clk 0:00:50]}  Rdf8 {[%clk 0:00:22]} 25. Qh5 {[%clk 0:00:46]}  Qxh5 {[%clk 0:00:17]} 26. Bxh5 {[%clk 0:00:47]}  Rf6 {[%clk 0:00:18]} 27. Rae1 {[%clk 0:00:45]}  Kc7 {[%clk 0:00:16]} 28. b4 {[%clk 0:00:44]}  Na6 {[%clk 0:00:15]} 29. a3 {[%clk 0:00:43]}  Rd8 {[%clk 0:00:13]} 30. Rxe6 {[%clk 0:00:41]}  Rxe6 {[%clk 0:00:14]} 31. Rxe6 {[%clk 0:00:41]}  Rd3 {[%clk 0:00:14]} 32. Re7+ {[%clk 0:00:35]}  Kb6 {[%clk 0:00:15]} 33. Rxh7 {[%clk 0:00:27]}  Rxa3 {[%clk 0:00:15]} 34. f4 {[%clk 0:00:25]}  Nxb4 {[%clk 0:00:15]} 35. f5 {[%clk 0:00:26]}  Nd5 {[%clk 0:00:13]} 36. Bf3 {[%clk 0:00:23]}  Ra4 {[%clk 0:00:09]} 37. Bxd5 {[%clk 0:00:18]}  cxd5 {[%clk 0:00:10]} 38. g4 {[%clk 0:00:18]}  Rf4 {[%clk 0:00:08]} 39. Re7 {[%clk 0:00:14]}  a5 {[%clk 0:00:08]} 40. Re6+ {[%clk 0:00:14]}  Kb5 {[%clk 0:00:08]} 41. f6 {[%clk 0:00:14]}  a4 {[%clk 0:00:09]} 42. g5 {[%clk 0:00:15]}  a3 {[%clk 0:00:09]} 43. Re1 {[%clk 0:00:13]}  Kc4 {[%clk 0:00:06]} 44. Kg2 {[%clk 0:00:13]}  b5 {[%clk 0:00:06]} 45. Kg3 {[%clk 0:00:13]}  Rf5 {[%clk 0:00:06]} 46. Kg4 {[%clk 0:00:13]}  Rf2 {[%clk 0:00:07]} 47. h4 {[%clk 0:00:09]}  b4 {[%clk 0:00:07]} 48. h5 {[%clk 0:00:08]}  b3 {[%clk 0:00:08]} 49. h6 {[%clk 0:00:08]}  b2 {[%clk 0:00:08]} 50. h7 {[%clk 0:00:08]}  Rh2 {[%clk 0:00:07]} 51. f7 {[%clk 0:00:08]}  a2 {[%clk 0:00:07]} 52. f8=Q {[%clk 0:00:07]}  a1=Q {[%clk 0:00:07]} 53. Qc8+ {[%clk 0:00:08]}  Kb5 {[%clk 0:00:06]} 54. Qb8+ {[%clk 0:00:07]}  Kc4 {[%clk 0:00:06]} 55. Qc7+ {[%clk 0:00:06]}  Kb5 {[%clk 0:00:06]} 56. Qd7+ {[%clk 0:00:06]}  Kc5 {[%clk 0:00:07]} 57. Qc7+ {[%clk 0:00:06]}  Kb5 {[%clk 0:00:07]} 58. Qxh2 {[%clk 0:00:04]}  Qxe1 {[%clk 0:00:05]} 59. h8=Q {[%clk 0:00:04]}  Qd1+ {[%clk 0:00:04]} 60. Kg3 {[%clk 0:00:03]}  Qd3+ {[%clk 0:00:04]} 61. Kg4 {[%clk 0:00:04]}  Qd1+ {[%clk 0:00:02]} 62. Kh4 {[%clk 0:00:04]}  Qe1+ {[%clk 0:00:02]} 63. Kh5 {[%clk 0:00:04]}  Qd1+ {[%clk 0:00:01]} 64. Kh6 {[%clk 0:00:04]}  b1=Q {[%clk 0:00:02]} 65. Q8b8+ {[%clk 0:00:05]}  Kc6 {[%clk 0:00:03]} 66. Qbc7+ {[%clk 0:00:05]}  Kb5 {[%clk 0:00:03]} 67. Qb7+ {[%clk 0:00:06]}  Kc4 {[%clk 0:00:03]} 68. Qhc7+ {[%clk 0:00:06]}  Kd4 {[%clk 0:00:03]} 69. Qf4+ {[%clk 0:00:05]}  Kd3 {[%clk 0:00:04]} 70. Qxd5+ {[%clk 0:00:04]}  Kc3 {[%clk 0:00:04]} 71. Qfc4+ {[%clk 0:00:05]}  Kb2 {[%clk 0:00:04]} 72. Qdb5+ {[%clk 0:00:05]}  Ka1 {[%clk 0:00:03]} 73. Qc3+ {[%clk 0:00:05]}  Ka2 {[%clk 0:00:03]} 74. Qca5+ {[%clk 0:00:05]}  Qa4 {[%clk 0:00:02]} 75. Qaxa4# {[%clk 0:00:06]} 1-0


[Site "https://www.chess.com"]

[Event "Titled Tuesday Blitz November 29 Early 2022"]
[White "Petrova, Irina"]
[Black "Adel, Sara"]
[WhiteFideId "14124122"]
[BlackFideId "10616764"]
[WhiteElo "2023"]
[BlackElo "1994"]
[Result "1/2-1/2"]
[Round "03"]
[TimeControl "180+1"]
[Date "2022.11.30"]
[WhiteClock "0:00:22"]
[BlackClock "0:00:22"]

1. e4 {[%clk 0:03:00]}  c6 {[%clk 0:02:59]} 2. d4 {[%clk 0:02:59]}  d5 {[%clk 0:02:57]} 3. Nc3 {[%clk 0:03:00]}  dxe4 {[%clk 0:02:57]} 4. Nxe4 {[%clk 0:02:59]}  Bf5 {[%clk 0:02:57]} 5. Ng3 {[%clk 0:02:59]}  Bg6 {[%clk 0:02:58]} 6. h4 {[%clk 0:03:00]}  h6 {[%clk 0:02:58]} 7. Nf3 {[%clk 0:03:01]}  Nd7 {[%clk 0:02:58]} 8. h5 {[%clk 0:03:01]}  Bh7 {[%clk 0:02:58]} 9. Bd3 {[%clk 0:03:02]}  Bxd3 {[%clk 0:02:59]} 10. Qxd3 {[%clk 0:03:02]}  Ngf6 {[%clk 0:02:59]} 11. Bd2 {[%clk 0:03:02]}  e6 {[%clk 0:03:00]} 12. O-O-O {[%clk 0:03:03]}  a5 {[%clk 0:03:00]} 13. Ne4 {[%clk 0:02:59]}  a4 {[%clk 0:02:58]} 14. Kb1 {[%clk 0:02:32]}  a3 {[%clk 0:02:58]} 15. b3 {[%clk 0:02:32]}  Nxe4 {[%clk 0:02:51]} 16. Qxe4 {[%clk 0:02:33]}  Nf6 {[%clk 0:02:50]} 17. Qe2 {[%clk 0:02:33]}  Qd5 {[%clk 0:02:42]} 18. Ne5 {[%clk 0:02:26]}  Bd6 {[%clk 0:02:36]} 19. f3 {[%clk 0:02:19]}  Qxd4 {[%clk 0:02:34]} 20. Nc4 {[%clk 0:02:03]}  Nd5 {[%clk 0:01:43]} 21. Nxd6+ {[%clk 0:01:54]}  Kf8 {[%clk 0:01:28]} 22. c3 {[%clk 0:01:36]}  Nxc3+ {[%clk 0:01:22]} 23. Bxc3 {[%clk 0:01:37]}  Qxc3 {[%clk 0:01:23]} 24. Qc2 {[%clk 0:01:31]}  Qe5 {[%clk 0:01:22]} 25. Nxb7 {[%clk 0:01:30]}  Ke7 {[%clk 0:01:19]} 26. Rhe1 {[%clk 0:01:24]}  Qxh5 {[%clk 0:01:05]} 27. Qxc6 {[%clk 0:01:20]}  Qf5+ {[%clk 0:01:03]} 28. Qe4 {[%clk 0:01:15]}  Qg5 {[%clk 0:00:53]} 29. Qb4+ {[%clk 0:01:12]}  Kf6 {[%clk 0:00:51]} 30. Qc3+ {[%clk 0:01:07]}  Kg6 {[%clk 0:00:48]} 31. Qd3+ {[%clk 0:01:04]}  Kf6 {[%clk 0:00:43]} 32. Nc5 {[%clk 0:01:01]}  Qxc5 {[%clk 0:00:38]} 33. Re4 {[%clk 0:00:45]}  Rhd8 {[%clk 0:00:25]} 34. Rd4 {[%clk 0:00:43]}  Qe5 {[%clk 0:00:17]} 35. f4 {[%clk 0:00:30]}  Qxd4 {[%clk 0:00:17]} 36. Qxd4+ {[%clk 0:00:31]}  Rxd4 {[%clk 0:00:18]} 37. Rxd4 {[%clk 0:00:32]}  e5 {[%clk 0:00:18]} 38. fxe5+ {[%clk 0:00:32]}  Kxe5 {[%clk 0:00:19]} 39. Rg4 {[%clk 0:00:32]}  g5 {[%clk 0:00:19]} 40. b4 {[%clk 0:00:30]}  f5 {[%clk 0:00:20]} 41. Rg3 {[%clk 0:00:30]}  Rb8 {[%clk 0:00:20]} 42. Rb3 {[%clk 0:00:29]}  f4 {[%clk 0:00:20]} 43. Kc2 {[%clk 0:00:29]}  g4 {[%clk 0:00:20]} 44. Kd2 {[%clk 0:00:30]}  Ke4 {[%clk 0:00:21]} 45. Ke2 {[%clk 0:00:27]}  Rc8 {[%clk 0:00:21]} 46. Rxa3 {[%clk 0:00:26]}  Rc2+ {[%clk 0:00:21]} 47. Kf1 {[%clk 0:00:26]}  f3 {[%clk 0:00:21]} 48. gxf3+ {[%clk 0:00:26]}  gxf3 {[%clk 0:00:22]} 49. b5 {[%clk 0:00:25]}  Rb2 {[%clk 0:00:21]} 50. Rb3 {[%clk 0:00:24]}  Rxa2 {[%clk 0:00:21]} 51. b6 {[%clk 0:00:23]}  Ra8 {[%clk 0:00:21]} 52. b7 {[%clk 0:00:23]}  Rb8 {[%clk 0:00:22]} 53. Kf2 {[%clk 0:00:24]}  h5 {[%clk 0:00:20]} 54. Rb4+ {[%clk 0:00:24]}  Kf5 {[%clk 0:00:20]} 55. Kxf3 {[%clk 0:00:25]}  Kg5 {[%clk 0:00:20]} 56. Kg3 {[%clk 0:00:25]}  h4+ {[%clk 0:00:19]} 57. Kh3 {[%clk 0:00:25]}  Kh5 {[%clk 0:00:17]} 58. Rb5+ {[%clk 0:00:25]}  Kg6 {[%clk 0:00:17]} 59. Kxh4 {[%clk 0:00:26]}  Kf7 {[%clk 0:00:18]} 60. Kg5 {[%clk 0:00:26]}  Ke7 {[%clk 0:00:19]} 61. Kf5 {[%clk 0:00:27]}  Kd7 {[%clk 0:00:19]} 62. Ke5 {[%clk 0:00:27]}  Kc7 {[%clk 0:00:20]} 63. Kd5 {[%clk 0:00:27]}  Rxb7 {[%clk 0:00:21]} 64. Rxb7+ {[%clk 0:00:22]}  Kxb7 {[%clk 0:00:22]} 1/2-1/2


[Site "https://www.chess.com"]